fUST/lending_fUST_20250219
["ID","MTS","AMOUNT","RATE_DAILY","PERIOD"]
[353594250,1739952427181,-5495.3780915,0.00013056,2]
[353594251,1739952438336,-674.37421479,0.00012925,2]
[353594252,1739952442081,-457.05812686,0.00012925,2]
[353594253,1739952442103,-463.55556803,0.00013056,2]
[353594254,1739952445106,-342.01321062,0.00012925,2]
[353594255,1739952446112,-350.3538202,0.00012925,2]
[353594256,1739952446134,-8154.44869383,0.00013056,2]
[353594257,1739952454096,-692.36703082,0.00012925,2]
[353594258,1739952454120,-892.91429238,0.00013056,2]
[353594259,1739952545079,-163.73041243,0.00012796,2]
[353594277,1739952632279,-58.56157163,0.00012796,2]
[353594278,1739952632288,-222.29198406,0.00012925,2]
[353594279,1739952632298,-222.29198406,0.00013056,2]
[353594280,1739952632309,-162.19274135,0.00013598,2]
[353594281,1739952632320,-300.0,0.00013696,2]
[353594282,1739952632332,-500.0,0.00013697,2]
[353594283,1739952632342,-500.0,0.00013697,2]
[353594284,1739952632354,-500.0,0.00013697,2]
[353594285,1739952632364,-500.0,0.00013697,2]
[353594286,1739952632375,-452.03076667,0.00013697,2]
[353594287,1739952632385,-290.73095024,0.00013697,2]
[353594288,1739952632400,-452.70840822,0.00013697,2]
[353594289,1739952632411,-500.0,0.00013697,2]
[353594290,1739952632421,-500.0,0.00013697,2]
[353594291,1739952632431,-500.0,0.00013697,2]
[353594292,1739952632443,-500.0,0.00013697,2]
[353594293,1739952632453,-500.0,0.00013697,2]
[353594294,1739952632463,-500.0,0.00013697,2]
[353594295,1739952632475,-500.0,0.00013697,2]
[353594296,1739952632485,-500.0,0.00013697,2]
[353594297,1739952632495,-500.0,0.00013697,2]
[353594298,1739952632506,-500.0,0.00013697,2]
[353594299,1739952632516,-500.0,0.00013697,2]
[353594300,1739952632526,-500.0,0.00013697,2]
[353594301,1739952632536,-500.0,0.00013697,2]
[353594302,1739952632547,-321.19230969,0.00013697,2]
[353594319,1739952638164,-376.0353348,0.0001356,2]
[353594320,1739952638174,-178.80769031,0.00013697,2]
[353594321,1739952638183,-157.37339337,0.00013697,2]
[353594322,1739952638193,-255.23769833,0.00013697,2]
[353594323,1739952638202,-299.48551962,0.00013697,2]
[353594324,1739952638210,-500.0,0.00013698,2]
[353594325,1739952638220,-500.0,0.00013698,2]
[353594326,1739952638229,-500.0,0.00013698,2]
[353594327,1739952638238,-500.0,0.00013698,2]
[353594328,1739952638247,-500.0,0.00013698,2]
[353594329,1739952638256,-500.0,0.00013698,2]
[353594330,1739952638265,-500.0,0.00013698,2]
[353594331,1739952638274,-505.03,0.00013698,2]
[353594332,1739952638283,-500.0,0.00013698,2]
[353594333,1739952638292,-500.0,0.00013698,2]
[353594334,1739952638301,-500.0,0.00013698,2]
[353594337,1739952638311,-500.0,0.00013698,2]
[353594338,1739952638320,-500.0,0.00013698,2]
[353594340,1739952638329,-500.0,0.00013698,2]
[353594342,1739952638337,-500.0,0.00013698,2]
[353594344,1739952638347,-501.73815508,0.00013698,2]
[353594345,1739952638356,-500.73480554,0.00013698,2]
[353594346,1739952638365,-500.0,0.00013698,2]
[353594348,1739952638374,-500.0,0.00013698,2]
[353594350,1739952638384,-500.0,0.00013698,2]
[353594352,1739952638393,-500.0,0.00013698,2]
[353594354,1739952638405,-500.77966062,0.00013698,2]
[353594355,1739952638415,-500.0,0.00013698,2]
[353594356,1739952638424,-430.9926689,0.00013698,2]
[353594357,1739952638432,-500.0,0.00013698,2]
[353594358,1739952638442,-502.78787082,0.00013698,2]
[353594359,1739952638451,-500.0,0.00013698,2]
[353594360,1739952638461,-500.0,0.00013698,2]
[353594361,1739952638470,-500.0,0.00013698,2]
[353594362,1739952638483,-504.04340888,0.00013698,2]
[353594363,1739952638493,-500.0,0.00013698,2]
[353594364,1739952638502,-500.0,0.00013698,2]
[353594365,1739952638511,-500.0,0.00013698,2]
[353594366,1739952638521,-177.658893,0.00013699,2]
[353594367,1739952638530,-500.0,0.00013699,2]
[353594368,1739952638539,-500.0,0.00013699,2]
[353594369,1739952638547,-500.0,0.00013699,2]
[353594370,1739952638556,-500.0,0.00013699,2]
[353594371,1739952638566,-500.0,0.00013699,2]
[353594372,1739952638575,-500.0,0.00013699,2]
[353594373,1739952638584,-500.0,0.00013699,2]
[353594374,1739952638593,-531.22173993,0.00013699,2]
[353594375,1739952638602,-500.0,0.00013699,2]
[353594376,1739952638611,-226.04030275,0.00013699,2]
[353594377,1739952638621,-318.66250715,0.00013778,2]
[353594378,1739952638630,-500.0,0.00013778,2]
[353594379,1739952638639,-500.0,0.00013778,2]
[353594380,1739952638648,-500.0,0.00013779,2]
[353594381,1739952638659,-500.0,0.00013779,2]
[353594382,1739952638668,-500.0,0.00013779,2]
[353594383,1739952638677,-500.0,0.00013779,2]
[353594384,1739952638686,-500.0,0.00013779,2]
[353594385,1739952638695,-500.0,0.00013779,2]
[353594386,1739952638705,-500.0,0.00013779,2]
[353594387,1739952638713,-500.0,0.00013779,2]
[353594388,1739952638722,-500.0,0.00013779,2]
[353594389,1739952638732,-500.0,0.00013779,2]
[353594390,1739952638741,-500.0,0.00013779,2]
[353594391,1739952638750,-500.0,0.00013779,2]
[353594392,1739952638759,-543.28,0.00013779,2]
[353594393,1739952638768,-500.0,0.00013779,2]
[353594394,1739952638777,-512.89,0.00013779,2]
[353594395,1739952638786,-500.0,0.00013779,2]
[353594396,1739952638795,-500.0,0.00013779,2]
[353594397,1739952638804,-500.0,0.00013779,2]
[353594398,1739952638814,-500.0,0.00013779,2]
[353594399,1739952638823,-500.0,0.00013779,2]
[353594400,1739952638833,-500.0,0.00013779,2]
[353594401,1739952638842,-500.0,0.00013779,2]
[353594402,1739952638851,-182.09319782,0.00013779,2]
[353594403,1739952638861,-500.0,0.00013779,2]
[353594404,1739952638871,-500.0,0.00013779,2]
[353594405,1739952638881,-580.82,0.00013779,2]
[353594406,1739952638891,-500.0,0.00013779,2]
[353594407,1739952638901,-500.0,0.00013779,2]
[353594408,1739952638911,-500.0,0.00013779,2]
[353594409,1739952638920,-500.0,0.00013779,2]
[353594410,1739952638929,-500.0,0.00013779,2]
[353594411,1739952638939,-500.0,0.00013779,2]
[353594412,1739952638949,-500.0,0.00013779,2]
[353594413,1739952638959,-500.0,0.00013779,2]
[353594414,1739952638968,-618.9,0.0001378,2]
[353594415,1739952638977,-500.0,0.0001378,2]
[353594416,1739952638987,-500.0,0.0001378,2]
[353594417,1739952638996,-500.0,0.0001378,2]
[353594418,1739952639006,-504.71,0.0001378,2]
[353594419,1739952639015,-500.0,0.0001378,2]
[353594420,1739952639024,-500.0,0.0001378,2]
[353594421,1739952639033,-500.0,0.0001378,2]
[353594422,1739952639043,-292.11,0.0001378,2]
[353594423,1739952639052,-500.0,0.0001386,2]
[353594424,1739952639062,-500.0,0.00013861,2]
[353594425,1739952639071,-500.0,0.00013861,2]
[353594426,1739952639080,-613.69,0.00013861,2]
[353594427,1739952639089,-500.0,0.00013861,2]
[353594428,1739952639099,-500.0,0.00013861,2]
[353594429,1739952639108,-647.96,0.00013861,2]
[353594430,1739952639118,-500.0,0.00013861,2]
[353594431,1739952639127,-500.0,0.00013861,2]
[353594432,1739952639136,-500.0,0.00013861,2]
[353594433,1739952639146,-500.0,0.00013861,2]
[353594434,1739952639155,-500.0,0.00013861,2]
[353594435,1739952639164,-500.0,0.00013861,2]
[353594436,1739952639174,-550.60367483,0.00013861,2]
[353594437,1739952639183,-500.0,0.00013861,2]
[353594438,1739952639192,-500.0,0.00013861,2]
[353594439,1739952639202,-472.07159402,0.00013861,2]
[353594440,1739952639212,-500.0,0.00013861,2]
[353594441,1739952639221,-500.0,0.00013861,2]
[353594442,1739952639230,-180.19,0.00013863,2]
[353594443,1739952639240,-341.76509638,0.00013863,2]
[353594444,1739952639249,-500.0,0.00013863,2]
[353594445,1739952639258,-500.0,0.00013863,2]
[353594446,1739952639267,-500.0,0.00013863,2]
[353594447,1739952639277,-500.0,0.00013943,2]
[353594448,1739952639286,-357.62,0.00013944,2]
[353594449,1739952639296,-223.39588841,0.00013944,2]
[353594450,1739952639305,-500.0,0.00013944,2]
[353594451,1739952639314,-500.0,0.00013944,2]
[353594452,1739952639324,-500.0,0.00013944,2]
[353594453,1739952639333,-500.0,0.00013944,2]
[353594454,1739952639343,-500.0,0.00013944,2]
[353594455,1739952639352,-500.0,0.00013944,2]
[353594456,1739952639362,-500.0,0.00013944,2]
[353594457,1739952639372,-500.0,0.00013944,2]
[353594458,1739952639381,-500.0,0.00013944,2]
[353594459,1739952639390,-500.0,0.00013944,2]
[353594460,1739952639402,-500.0,0.00013944,2]
[353594461,1739952639411,-199.13,0.00013944,2]
[353594462,1739952639421,-500.0,0.00013945,2]
[353594463,1739952639430,-500.0,0.00013945,2]
[353594464,1739952639440,-500.0,0.00013945,2]
[353594465,1739952639449,-500.0,0.00014025,2]
[353594466,1739952639458,-500.0,0.00014025,2]
[353594467,1739952639468,-608.33,0.00014026,2]
[353594468,1739952639479,-373.58,0.00014026,2]
[353594469,1739952639488,-161.6,0.00014026,2]
[353594470,1739952639498,-500.0,0.00014026,2]
[353594471,1739952639507,-500.0,0.00014026,2]
[353594472,1739952639516,-500.0,0.00014027,2]
[353594473,1739952639526,-500.0,0.00014027,2]
[353594474,1739952639536,-369.30672303,0.00014027,2]
[353594475,1739952639545,-585.26,0.00014107,2]
[353594476,1739952639556,-500.0,0.00014108,2]
[353594477,1739952639565,-500.0,0.00014108,2]
[353594478,1739952639574,-395.63520534,0.00014108,2]
[353594479,1739952639583,-500.0,0.00014109,2]
[353594480,1739952639593,-500.0,0.00014109,2]
[353594481,1739952639603,-500.0,0.00014109,2]
[353594482,1739952639613,-202.706,0.00014186,2]
[353594483,1739952639623,-500.0,0.0001419,2]
[353594484,1739952639632,-500.0,0.00014191,2]
[353594485,1739952639642,-500.0,0.00014191,2]
[353594486,1739952639652,-500.0,0.00014191,2]
[353594487,1739952639662,-500.0,0.00014254,2]
[353594488,1739952639671,-500.4381034,0.00014262,2]
[353594489,1739952639681,-344.15173954,0.00014272,2]
[353594490,1739952639690,-500.0,0.00014273,2]
[353594491,1739952639699,-500.0,0.00014273,2]
[353594492,1739952639708,-500.0,0.00014273,2]
[353594493,1739952639718,-500.0,0.00014354,2]
[353594494,1739952639727,-500.0,0.00014355,2]
[353594495,1739952639737,-500.0,0.00014356,2]
[353594496,1739952639746,-500.0,0.00014356,2]
[353594497,1739952639755,-500.0,0.00014388,2]
[353594498,1739952639764,-41944.60667865,0.00014396,5]
[353594499,1739952639773,-10471.73435536,0.00014396,5]
[353594500,1739952639783,-13275.53870192,0.00014396,2]
[353594501,1739952639792,-500.0,0.00014437,2]
[353594502,1739952639801,-500.0,0.00014438,2]
[353594503,1739952639811,-500.0,0.00014438,2]
[353594504,1739952639820,-500.0,0.00014467,2]
[353594505,1739952639830,-500.0,0.0001452,2]
[353594506,1739952639840,-500.0,0.0001452,2]
[353594507,1739952639850,-245.62,0.0001452,2]
[353594508,1739952639860,-151.0,0.000146,5]
[353594509,1739952639870,-151.63863056,0.000146,5]
[353594510,1739952639880,-500.0,0.00014602,2]
[353594512,1739952639890,-263.97193591,0.00014602,2]
[353594514,1739952639900,-500.0,0.00014684,2]
[353594515,1739952639910,-204.66108231,0.00014684,2]
[353594516,1739952639920,-314.0,0.00014684,2]
[353594517,1739952639930,-314.0,0.00014684,2]
[353594520,1739952639940,-261.86072004,0.00014684,2]
[353594521,1739952639950,-500.0,0.00014766,2]
[353594522,1739952639959,-500.0,0.00014848,2]
[353594523,1739952639968,-500.0,0.0001493,2]
[353594524,1739952639979,-1003.18425071,0.00014935,2]
[353594525,1739952639989,-49847.7076966,0.00014969,2]
[353594526,1739952639999,-259.774038,0.00014979,2]
[353594527,1739952640009,-151.0,0.00014979,2]
[353594528,1739952640018,-151.0,0.00014979,2]
[353594529,1739952640028,-572.01,0.00014989,2]
[353594530,1739952640037,-151.0,0.0001499,2]
[353594531,1739952640047,-151.0,0.0001499,2]
[353594532,1739952640056,-151.0,0.0001499,2]
[353594533,1739952640066,-1237.940712,0.0001499,2]
[353594534,1739952640075,-1237.940712,0.0001499,2]
[353594535,1739952640084,-49847.7076966,0.0001499,2]
[353594536,1739952640094,-732.674586,0.0001499,2]
[353594537,1739952640103,-732.674586,0.0001499,2]
[353594538,1739952640113,-1889.090803,0.0001499,2]
[353594539,1739952640122,-1889.090803,0.0001499,2]
[353594540,1739952640132,-151.0,0.0001499,2]
[353594541,1739952640141,-9362.760016,0.0001499,2]
[353594542,1739952640150,-9362.760016,0.0001499,2]
[353594543,1739952640160,-151.0,0.0001499,2]
[353594544,1739952640169,-44454.0,0.00015,2]
[353594545,1739952640179,-636.903228,0.00015,2]
[353594546,1739952640188,-636.903228,0.00015,2]
[353594547,1739952640198,-1716.55965,0.00015,2]
[353594548,1739952640207,-1716.55965,0.00015,2]
[353594549,1739952640216,-1210.5332,0.00015,2]
[353594550,1739952640225,-1210.5332,0.00015,2]
[353594551,1739952640235,-475.666896,0.00015,2]
[353594552,1739952640244,-475.666896,0.00015,2]
[353594553,1739952640254,-3811.320699,0.00015,2]
[353594554,1739952640263,-3811.320699,0.00015,2]
[353594555,1739952640273,-151.0,0.00015,2]
[353594556,1739952640283,-151.0,0.00015,2]
[353594557,1739952640293,-151.0,0.00015,2]
[353594559,1739952640302,-206.781641,0.00015,2]
[353594560,1739952640311,-206.781641,0.00015,2]
[353594561,1739952640321,-151.0,0.00015,2]
[353594562,1739952640330,-151.0,0.00015,2]
[353594563,1739952640340,-2816.70036,0.00015,2]
[353594564,1739952640349,-2816.70036,0.00015,2]
[353594565,1739952640358,-151.0,0.00015,2]
[353594566,1739952640368,-432.824903,0.00015,2]
[353594567,1739952640378,-917.611949,0.00015,2]
[353594568,1739952640388,-432.824903,0.00015,2]
[353594569,1739952640399,-917.611949,0.00015,2]
[353594570,1739952640409,-163.67464,0.00015,2]
[353594571,1739952640418,-151.0,0.00015,2]
[353594572,1739952640428,-151.0,0.00015,2]
[353594573,1739952640439,-163.689094,0.00015,2]
[353594574,1739952640449,-7368.66434,0.00015,2]
[353594575,1739952640458,-7368.66434,0.00015,2]
[353594576,1739952640468,-151.0,0.00015,2]
[353594577,1739952640480,-1237.940712,0.00015,2]
[353594578,1739952640490,-1237.940712,0.00015,2]
[353594579,1739952640500,-732.674586,0.00015,2]
[353594580,1739952640510,-732.674586,0.00015,2]
[353594582,1739952640519,-1889.090803,0.00015,2]
[353594584,1739952640528,-1889.090803,0.00015,2]
[353594585,1739952640538,-151.0,0.00015,2]
[353594586,1739952640547,-151.0,0.00015,2]
[353594587,1739952640556,-151.357764,0.00015,2]
[353594588,1739952640566,-151.357764,0.00015,2]
[353594589,1739952640576,-9362.760016,0.00015,2]
[353594590,1739952640586,-9362.760016,0.00015,2]
[353594591,1739952640595,-420.0,0.00015009,2]
[353594592,1739952640605,-500.0,0.00015011,2]
[353594593,1739952640615,-500.0,0.00015013,2]
[353594594,1739952640626,-500.0,0.00015095,2]
[353594595,1739952640636,-151.0,0.00015122,2]
[353594596,1739952640646,-151.0,0.00015122,2]
[353594597,1739952640656,-1237.940712,0.00015122,2]
[353594598,1739952640665,-1237.940712,0.00015122,2]
[353594599,1739952640675,-732.674586,0.00015122,2]
[353594600,1739952640684,-732.674586,0.00015122,2]
[353594601,1739952640694,-1889.090803,0.00015122,2]
[353594602,1739952640704,-1889.090803,0.00015122,2]
[353594603,1739952640713,-9362.760016,0.00015122,2]
[353594604,1739952640723,-9362.760016,0.00015122,2]
[353594605,1739952640732,-1436.55487034,0.00015133,2]
[353594606,1739952640743,-500.0,0.00015177,2]
[353594607,1739952640752,-295.1338,0.00015259,2]
[353594608,1739952640762,-151.0,0.00015496,2]
[353594609,1739952640771,-739.433631,0.00015496,2]
[353594610,1739952640780,-739.433631,0.00015496,2]
[353594611,1739952640790,-557.1188801,0.00015534,2]
[353594612,1739952640800,-1000.0,0.00015559,2]
[353594613,1739952640810,-151.0,0.00015743,2]
[353594614,1739952640819,-162.19274134,0.00015749,2]
[353594615,1739952640829,-24923.8538483,0.0001598,2]
[353594616,1739952640840,-1210.5332,0.0001599,2]
[353594617,1739952640849,-475.666896,0.0001599,2]
[353594618,1739952640859,-1210.5332,0.0001599,2]
[353594619,1739952640869,-475.666896,0.0001599,2]
[353594620,1739952640880,-3811.320699,0.0001599,2]
[353594621,1739952640889,-3811.320699,0.0001599,2]
[353594622,1739952640899,-209.394915,0.0001599,2]
[353594623,1739952640908,-151.0,0.0001599,2]
[353594624,1739952640918,-159.023131,0.0001599,2]
[353594625,1739952640928,-206.781641,0.0001599,2]
[353594626,1739952640938,-206.781641,0.0001599,2]
[353594627,1739952640948,-151.0,0.0001599,2]
[353594628,1739952640958,-193.477437,0.0001599,2]
[353594629,1739952640967,-2816.70036,0.0001599,2]
[353594630,1739952640977,-2816.70036,0.0001599,2]
[353594631,1739952640986,-432.824903,0.0001599,2]
[353594632,1739952640996,-917.611949,0.0001599,2]
[353594633,1739952641006,-432.824903,0.0001599,2]
[353594634,1739952641016,-917.611949,0.0001599,2]
[353594635,1739952641025,-151.0,0.0001599,2]
[353594636,1739952641035,-151.0,0.0001599,2]
[353594637,1739952641147,-7368.66434,0.0001599,2]
[353594638,1739952641157,-7368.66434,0.0001599,2]
[353594639,1739952641166,-151.0,0.0001599,2]
[353594640,1739952641176,-1237.940712,0.0001599,2]
[353594641,1739952641186,-1237.940712,0.0001599,2]
[353594642,1739952641196,-732.674586,0.0001599,2]
[353594643,1739952641206,-732.674586,0.0001599,2]
[353594644,1739952641216,-1889.090803,0.0001599,2]
[353594645,1739952641228,-1889.090803,0.0001599,2]
[353594646,1739952641237,-151.0,0.0001599,2]
[353594647,1739952641247,-151.357764,0.0001599,2]
[353594648,1739952641257,-151.357764,0.0001599,2]
[353594649,1739952641267,-200.49890528,0.00015998,2]
[353594650,1739952641277,-2931.624457,0.00016,2]
[353594651,1739952641286,-4998.999999,0.00016,2]
[353594652,1739952641295,-151.0,0.00016,2]
[353594653,1739952641305,-151.0,0.00016,2]
[353594654,1739952641314,-9362.760016,0.00016,2]
[353594655,1739952641323,-9362.760016,0.00016,2]
[353594656,1739952641333,-557.1188801,0.00016027,2]
[353594657,1739952641342,-557.1188801,0.00016027,2]
[353594658,1739952641351,-557.1188801,0.00016027,2]
[353594659,1739952641361,-557.1188801,0.00016027,2]
[353594660,1739952641371,-557.1188801,0.00016027,2]
[353594661,1739952641381,-557.1188801,0.00016027,2]
[353594662,1739952641391,-557.1188801,0.00016027,2]
[353594663,1739952641405,-557.1188801,0.00016027,2]
[353594664,1739952641414,-557.1188801,0.00016027,2]
[353594665,1739952641424,-24923.8538483,0.00016036,2]
[353594666,1739952641434,-151.0,0.00016046,2]
[353594667,1739952641445,-1237.940712,0.00016046,2]
[353594668,1739952641455,-1237.940712,0.00016046,2]
[353594669,1739952641464,-732.674586,0.00016046,2]
[353594670,1739952641475,-732.674586,0.00016046,2]
[353594671,1739952641485,-1889.090803,0.00016046,2]
[353594672,1739952641494,-1889.090803,0.00016046,2]
[353594673,1739952641504,-557.1188801,0.00016056,2]
[353594674,1739952641514,-500.66690975,0.00016149,2]
[353594675,1739952641524,-151.0,0.00016154,2]
[353594676,1739952641533,-24923.8538483,0.00016154,2]
[353594677,1739952641542,-151.0,0.00016164,2]
[353594678,1739952641552,-151.0,0.00016164,2]
[353594679,1739952641561,-151.0,0.00016164,2]
[353594680,1739952641570,-1071.854575,0.00016164,2]
[353594681,1739952641580,-1071.854575,0.00016164,2]
[353594682,1739952641589,-324.76277,0.00016164,2]
[353594683,1739952641598,-324.76277,0.00016164,2]
[353594684,1739952641608,-632.253702,0.00016164,2]
[353594685,1739952641617,-632.253702,0.00016164,2]
[353594686,1739952641627,-636.903228,0.00016164,2]
[353594687,1739952641637,-636.903228,0.00016164,2]
[353594688,1739952641646,-500.0,0.00016164,2]
[353594689,1739952641655,-500.0,0.00016164,2]
[353594690,1739952641665,-1716.55965,0.00016164,2]
[353594691,1739952641674,-1716.55965,0.00016164,2]
[353594692,1739952641683,-151.0,0.00016164,2]
[353594693,1739952641693,-151.0,0.00016164,2]
[353594694,1739952641702,-2816.70036,0.00016164,2]
[353594695,1739952641711,-2816.70036,0.00016164,2]
[353594696,1739952641721,-151.0,0.00016164,2]
[353594697,1739952641730,-432.824903,0.00016164,2]
[353594698,1739952641740,-917.611949,0.00016164,2]
[353594699,1739952641750,-432.824903,0.00016164,2]
[353594700,1739952641759,-917.611949,0.00016164,2]
[353594701,1739952641769,-151.0,0.00016164,2]
[353594702,1739952641779,-151.0,0.00016164,2]
[353594703,1739952641788,-7368.66434,0.00016164,2]
[353594704,1739952641797,-7368.66434,0.00016164,2]
[353594705,1739952641807,-499.0,0.00016164,2]
[353594706,1739952641817,-151.0,0.00016164,2]
[353594707,1739952641827,-151.357764,0.00016164,2]
[353594708,1739952641836,-151.357764,0.00016164,2]
[353594709,1739952641846,-9362.760016,0.00016164,2]
[353594710,1739952641856,-9362.760016,0.00016164,2]
[353594711,1739952641865,-557.1188801,0.00016256,2]
[353594712,1739952641875,-151.0,0.00016336,2]
[353594713,1739952641886,-1237.940712,0.00016336,2]
[353594714,1739952641896,-1237.940712,0.00016336,2]
[353594715,1739952641906,-732.674586,0.00016336,2]
[353594716,1739952641923,-732.674586,0.00016336,2]
[353594717,1739952641933,-1889.090803,0.00016336,2]
[353594718,1739952641943,-1889.090803,0.00016336,2]
[353594719,1739952641954,-9362.760016,0.00016346,2]
[353594720,1739952641964,-9362.760016,0.00016346,2]
[353594721,1739952641974,-24923.8538483,0.00016346,2]
[353594722,1739952641984,-1748.44476,0.00016356,2]
[353594723,1739952641993,-1748.44476,0.00016356,2]
[353594724,1739952642002,-1307.204522,0.00016356,2]
[353594725,1739952642012,-1210.5332,0.00016356,2]
[353594726,1739952642022,-475.666896,0.00016356,2]
[353594727,1739952642032,-1210.5332,0.00016356,2]
[353594728,1739952642042,-475.666896,0.00016356,2]
[353594729,1739952642052,-3811.320699,0.00016356,2]
[353594730,1739952642062,-3811.320699,0.00016356,2]
[353594731,1739952642072,-206.781641,0.00016356,2]
[353594732,1739952642082,-206.781641,0.00016356,2]
[353594733,1739952642091,-151.0,0.00016356,2]
[353594734,1739952642102,-151.0,0.00016356,2]
[353594735,1739952642112,-1237.940712,0.00016356,2]
[353594736,1739952642122,-1237.940712,0.00016356,2]
[353594737,1739952642131,-732.674586,0.00016356,2]
[353594738,1739952642141,-732.674586,0.00016356,2]
[353594739,1739952642151,-1889.090803,0.00016356,2]
[353594740,1739952642161,-1889.090803,0.00016356,2]
[353594741,1739952642170,-151.0,0.00016356,2]
[353594742,1739952642180,-1091.9415805,0.00016356,2]
[353594743,1739952642191,-557.1188801,0.00016356,2]
[353594744,1739952642201,-557.1188801,0.00016356,2]
[353594745,1739952642211,-557.1188801,0.00016356,2]
[353594746,1739952642220,-557.1188801,0.00016356,2]
[353594747,1739952642230,-557.1188801,0.00016356,2]
[353594748,1739952642239,-557.1188801,0.00016356,2]
[353594749,1739952642249,-557.1188801,0.00016356,2]
[353594750,1739952642260,-557.1188801,0.00016356,2]
[353594751,1739952642274,-557.1188801,0.00016356,2]
[353594752,1739952642287,-557.1188801,0.00016356,2]
[353594753,1739952642297,-557.1188801,0.00016356,2]
[353594754,1739952642307,-557.1188801,0.00016356,2]
[353594755,1739952642317,-557.1188801,0.00016356,2]
[353594756,1739952642326,-557.1188801,0.00016356,2]
[353594757,1739952642336,-557.1188801,0.00016356,2]
[353594758,1739952642346,-295.526225,0.00016356,2]
[353594759,1739952642355,-557.1188801,0.00016356,2]
[353594760,1739952642365,-557.1188801,0.00016356,2]
[353594761,1739952642374,-557.1188801,0.00016356,2]
[353594762,1739952642384,-557.1188801,0.00016356,2]
[353594763,1739952642394,-557.1188801,0.00016356,2]
[353594764,1739952642407,-557.1188801,0.00016356,2]
[353594765,1739952642416,-557.1188801,0.00016356,2]
[353594766,1739952642426,-557.1188801,0.00016356,2]
[353594767,1739952642435,-557.1188801,0.00016356,2]
[353594768,1739952642446,-557.1188801,0.00016356,2]
[353594769,1739952642456,-557.1188801,0.00016356,2]
[353594770,1739952642465,-557.1188801,0.00016356,2]
[353594771,1739952642475,-557.1188801,0.00016356,2]
[353594772,1739952642485,-557.1188801,0.00016356,2]
[353594773,1739952642495,-557.1188801,0.00016356,2]
[353594774,1739952642504,-557.1188801,0.00016356,2]
[353594775,1739952642514,-557.1188801,0.00016356,2]
[353594776,1739952642525,-557.1188801,0.00016356,2]
[353594777,1739952642535,-557.1188801,0.00016356,2]
[353594778,1739952642545,-557.1188801,0.00016356,2]
[353594779,1739952642555,-557.1188801,0.00016356,2]
[353594780,1739952642564,-557.1188801,0.00016356,2]
[353594781,1739952642574,-347.3337172,0.00016356,2]
[353594782,1739952642583,-379.0,0.00016449,2]
[353594783,1739952642593,-1003.62720318,0.00016561,2]
[353594784,1739952642603,-250.85346,0.00016848,2]
[353594785,1739952642613,-9362.760016,0.00016848,2]
[353594786,1739952642622,-9362.760016,0.00016848,2]
[353594787,1739952642632,-24923.8538483,0.00016848,2]
[353594788,1739952642642,-184.882004,0.00016849,2]
[353594789,1739952642653,-184.882004,0.00016849,2]
[353594790,1739952642662,-24923.8538483,0.00016858,2]
[353594791,1739952642672,-1210.5332,0.00016858,2]
[353594792,1739952642681,-1210.5332,0.00016858,2]
[353594794,1739952642691,-3811.320699,0.00016858,2]
[353594795,1739952642701,-3811.320699,0.00016858,2]
[353594796,1739952642711,-151.0,0.00016858,2]
[353594798,1739952642720,-206.781641,0.00016858,2]
[353594799,1739952642730,-206.781641,0.00016858,2]
[353594800,1739952642739,-151.0,0.00016858,2]